bitfinex/quotes_BTCUSD_20230118
["timestamp","ask_amount","ask_price","bid_price","bid_amount"]
[1674011522035,0.3381392,21337.0,21336.0,0.063]
[1674011522311,0.0164852,21337.0,21336.0,0.063]
[1674011525297,0.0856452,21337.0,21336.0,0.063]
[1674011525567,0.3381392,21337.0,21336.0,0.063]
[1674011525837,0.0164852,21337.0,21336.0,0.063]
[1674011526896,0.0164852,21337.0,21336.0,0.531691]
[1674011527439,0.0164852,21337.0,21336.0,0.53259438]
[1674011527999,0.0164852,21337.0,21336.0,1.20052202]
[1674011528262,0.01966317,21341.0,21337.0,0.51023596]
[1674011528558,0.01966317,21341.0,21338.0,1.6514142]
[1674011528841,0.01966317,21341.0,21339.0,1.35231747]
[1674011529102,0.01966317,21341.0,21340.0,2.69374325]
[1674011529383,0.01966317,21341.0,21340.0,3.01539725]
[1674011529651,0.01966317,21341.0,21340.0,3.3561232]
[1674011529968,0.01834868,21345.0,21340.0,3.6412232]
[1674011530251,0.01834868,21345.0,21341.0,0.58797545]
[1674011530516,0.01834868,21345.0,21342.0,2.86725639]
[1674011530773,0.00834868,21345.0,21343.0,1.16068825]
[1674011531109,0.00834868,21345.0,21344.0,2.24457925]
[1674011531321,0.00834868,21345.0,21344.0,2.56623325]
[1674011531581,0.00834868,21345.0,21344.0,3.34775351]
[1674011531849,0.00834868,21345.0,21344.0,3.04775351]
[1674011532117,0.00834868,21345.0,21344.0,3.12255351]
[1674011532441,0.00834868,21345.0,21344.0,2.64103325]
[1674011532657,0.00834868,21345.0,21344.0,3.03303325]
[1674011532910,0.00834868,21345.0,21344.0,3.10783325]
[1674011534258,4.868e-05,21345.0,21344.0,3.01583325]
[1674011534518,0.0002286,21350.0,21344.0,3.39243325]
[1674011534779,0.0002286,21350.0,21345.0,1.72143425]
[1674011535097,0.0002286,21350.0,21345.0,3.07854357]
[1674011535324,0.0002286,21350.0,21345.0,3.00374357]
[1674011535836,0.0002286,21350.0,21345.0,2.26771101]
[1674011536098,0.1804786,21350.0,21345.0,1.64050932]
[1674011536379,0.1502286,21350.0,21345.0,1.64050932]
[1674011536637,0.1502286,21350.0,21345.0,2.00465737]
[1674011536876,0.0002286,21350.0,21345.0,2.09665737]
[1674011537134,0.4702974,21349.0,21345.0,1.73482481]
[1674011537398,0.6501274,21349.0,21345.0,1.73482481]
[1674011537736,0.6501274,21349.0,21345.0,1.41317081]
[1674011537955,0.1800586,21350.0,21345.0,1.41317081]
[1674011538197,0.0002286,21350.0,21345.0,2.24505737]
[1674011538715,0.0002286,21350.0,21345.0,2.54505737]
[1674011538989,0.0002286,21350.0,21345.0,2.45305737]
[1674011539239,0.0002286,21350.0,21345.0,2.54505737]
[1674011539501,0.0002286,21350.0,21345.0,2.45305737]
[1674011539785,0.0002286,21350.0,21345.0,2.54505737]
[1674011540038,0.0002286,21350.0,21345.0,3.02225906]
[1674011541073,0.60719312,21350.0,21345.0,1.73482481]
[1674011541334,0.60719312,21350.0,21345.0,1.41317081]
[1674011541885,0.15,21349.0,21345.0,1.41317081]
[1674011542114,0.15,21349.0,21345.0,1.32117081]
[1674011542370,0.01738304,21346.0,21345.0,1.39585532]
[1674011542640,0.01738304,21346.0,21345.0,1.31885532]
[1674011542990,0.01838304,21346.0,21345.0,1.39585532]
[1674011543951,0.01838304,21346.0,21345.0,1.39085532]
[1674011544494,0.01838304,21346.0,21345.0,0.45386932]
[1674011545828,0.01838304,21346.0,21345.0,0.92236232]
[1674011546074,0.01838304,21346.0,21345.0,1.46535532]
[1674011546894,0.01838304,21346.0,21345.0,0.92236232]
[1674011547415,0.01838304,21346.0,21345.0,0.45386932]
[1674011548449,0.01838304,21346.0,21345.0,0.92236232]
[1674011548685,0.01838304,21346.0,21345.0,2.14904188]
[1674011549174,0.01838304,21346.0,21345.0,2.44904188]
[1674011549473,0.01838304,21346.0,21345.0,1.78720932]
[1674011549745,0.01838304,21346.0,21345.0,2.44904188]
[1674011550854,0.01838304,21346.0,21345.0,2.14904188]
[1674011551025,0.01838304,21346.0,21345.0,1.78720932]
[1674011551290,0.01838304,21346.0,21345.0,1.39085532]
[1674011553158,0.01838304,21346.0,21345.0,1.46565532]
[1674011553453,0.01838304,21346.0,21345.0,1.78730932]
[1674011553695,0.01838304,21346.0,21345.0,2.44914188]
[1674011553939,0.01838304,21346.0,21345.0,2.14914188]
[1674011554201,0.01838304,21346.0,21345.0,1.78730932]
[1674011554457,0.01838304,21346.0,21345.0,2.62377425]
[1674011554739,0.01838304,21346.0,21345.0,3.0429882]
[1674011555274,0.01838304,21346.0,21345.0,1.75473819]
[1674011556085,0.01838304,21346.0,21345.0,1.82913819]
[1674011556086,0.01338304,21346.0,21345.0,1.82913819]
[1674011556862,0.01338304,21346.0,21345.0,2.12913819]
[1674011557133,0.01338304,21346.0,21345.0,2.20333819]
[1674011557422,0.01338304,21346.0,21345.0,2.56420107]
[1674011558162,0.0002286,21350.0,21345.0,3.04140276]
[1674011558444,0.0002286,21350.0,21347.0,0.0747]
[1674011558779,0.0002286,21350.0,21347.0,1.56413351]
[1674011558961,0.0002286,21350.0,21347.0,1.20230095]
[1674011559223,0.0002286,21350.0,21347.0,1.37340756]
[1674011559476,0.0002286,21350.0,21347.0,1.56413351]
[1674011559744,0.0002286,21350.0,21348.0,0.15]
[1674011560020,0.0002286,21350.0,21348.0,0.618408]
[1674011560275,0.0012286,21350.0,21349.0,0.321654]
[1674011560518,0.0002286,21350.0,21349.0,0.468406]
[1674011560779,0.0002286,21350.0,21348.0,0.8600022]
[1674011560780,0.0012286,21350.0,21348.0,0.8600022]
[1674011561579,0.0002286,21350.0,21348.0,1.2424292]
[1674011561824,0.0002286,21350.0,21349.0,0.043]
[1674011562081,0.0002286,21350.0,21348.0,1.2424292]
[1674011562337,0.0012286,21350.0,21348.0,1.3284292]
[1674011563366,0.0012286,21350.0,21349.0,0.00011574]
[1674011563637,0.01750252,21355.0,21350.0,0.00122]
[1674011564012,0.01750252,21355.0,21351.0,0.98958164]
[1674011564182,0.01750252,21355.0,21351.0,1.726707]
[1674011564461,0.01750252,21355.0,21352.0,0.6843118]
[1674011564717,0.43787232,21355.0,21353.0,0.468318]
[1674011564981,0.4836657,21353.0,21350.0,0.56483361]
[1674011565255,0.321654,21352.0,21350.0,0.09645561]
[1674011565533,0.321654,21351.0,21350.0,0.09645561]
[1674011565795,0.7013056,21351.0,21350.0,0.09645561]
[1674011566641,0.85547959,21354.0,21350.0,1.22394956]
[1674011566932,0.85547959,21354.0,21351.0,0.19072595]
[1674011566933,0.4338,21354.0,21351.0,0.19072595]
[1674011567210,0.4338,21354.0,21351.0,0.65907695]
[1674011567467,0.4338,21354.0,21351.0,0.468351]
[1674011567750,0.4338,21354.0,21351.0,0.553351]
[1674011568275,0.01850252,21355.0,21351.0,1.64989675]
[1674011568541,0.01850252,21355.0,21352.0,0.9084118]
[1674011568801,0.01850252,21355.0,21352.0,0.4367578]
[1674011569084,0.39741447,21354.0,21350.0,0.94020361]
[1674011569357,0.39741447,21354.0,21350.0,1.16276184]
[1674011569613,0.321654,21353.0,21351.0,0.044]
[1674011569869,0.39741447,21354.0,21350.0,1.16276184]
[1674011570138,0.39741447,21354.0,21350.0,1.35348779]
[1674011570665,0.39841447,21354.0,21350.0,1.24876184]
[1674011570929,0.39841447,21354.0,21350.0,0.08945561]
[1674011570930,0.321654,21353.0,21350.0,0.08945561]
[1674011571198,1.27008522,21352.0,21350.0,0.08945561]
[1674011571468,0.321654,21351.0,21350.0,0.08945561]
[1674011572046,0.321654,21351.0,21350.0,0.08045561]
[1674011572298,0.48009122,21352.0,21350.0,0.00345561]
[1674011572524,0.48009122,21352.0,21350.0,0.01045561]
[1674011572525,0.336654,21351.0,21350.0,0.01045561]
[1674011574417,0.805016,21351.0,21350.0,0.01045561]
[1674011574609,1.029816,21351.0,21350.0,0.01045561]
[1674011575396,1.98497183,21351.0,21350.0,0.01045561]
[1674011576234,0.336654,21351.0,21350.0,0.01045561]
[1674011576514,0.805016,21351.0,21350.0,0.01045561]
[1674011576789,0.955016,21351.0,21350.0,0.01045561]
[1674011577121,0.805016,21351.0,21350.0,0.01045561]
[1674011577405,0.336654,21351.0,21350.0,0.01045561]
[1674011577898,0.015,21351.0,21350.0,0.01045561]
[1674011581684,0.08416,21351.0,21350.0,0.01045561]
[1674011581939,0.015,21351.0,21350.0,0.01045561]
[1674011582183,0.015,21351.0,21350.0,0.47883961]
[1674011582438,0.015,21351.0,21350.0,1.50154649]
[1674011582687,0.015,21351.0,21350.0,2.12320049]
[1674011582931,0.015,21351.0,21350.0,2.56065829]
[1674011583419,0.015,21351.0,21350.0,2.26065829]
[1674011583667,0.01750252,21355.0,21351.0,0.15]
[1674011583938,0.01750252,21355.0,21353.0,0.0742]
[1674011584178,0.01750252,21355.0,21354.0,0.468296]
[1674011584433,0.11219383,21358.0,21355.0,0.36441389]
[1674011584690,0.41049442,21359.0,21357.0,0.0747]
[1674011584691,0.01750252,21359.0,21357.0,0.0747]
[1674011584954,0.01750252,21359.0,21358.0,0.396454]
[1674011585194,0.01750252,21359.0,21358.0,0.321654]
[1674011585453,0.40159559,21359.0,21358.0,0.66792764]
[1674011585718,0.19040845,21369.0,21358.0,1.35468795]
[1674011585990,0.10030158,21369.0,21362.0,0.47720169]
[1674011586231,0.67590507,21370.0,21363.0,0.51237995]
[1674011586504,0.39112265,21370.0,21364.0,0.46857926]
[1674011586786,0.39112265,21370.0,21365.0,0.19072595]
[1674011586787,0.0745,21369.0,21365.0,0.19072595]
[1674011587035,0.321654,21368.0,21365.0,0.19072595]
[1674011587305,0.013,21370.0,21366.0,0.19072595]
[1674011587549,0.013,21370.0,21367.0,0.19072595]
[1674011588065,0.44109629,21371.0,21367.0,0.19072595]
[1674011588325,0.44109629,21371.0,21366.0,0.27834297]
[1674011588326,0.37363028,21369.0,21366.0,0.27834297]
[1674011588803,0.44843028,21369.0,21365.0,0.40390949]
[1674011588804,0.44843028,21369.0,21367.0,0.047]
[1674011589075,1.023633,21368.0,21360.0,1.62223439]
[1674011589326,1.023633,21368.0,21367.0,0.007]
[1674011589327,0.94519069,21368.0,21367.0,0.007]
[1674011589584,0.94519069,21368.0,21360.0,1.62223439]
[1674011589585,0.16312,21367.0,21360.0,1.62223439]
[1674011589968,0.16312,21367.0,21366.0,0.006]
[1674011589969,0.92720169,21367.0,21366.0,0.006]
[1674011590128,0.0748,21362.0,21361.0,0.51530781]
[1674011590380,0.0748,21362.0,21361.0,0.32458186]
[1674011590381,0.321654,21362.0,21361.0,0.32458186]
[1674011590634,1.42574665,21368.0,21364.0,0.37107422]
[1674011590913,0.021,21367.0,21365.0,0.19072595]
[1674011591184,0.85424665,21368.0,21364.0,0.56180017]
[1674011591444,0.85424665,21368.0,21363.0,0.42841906]
[1674011591445,0.789665,21367.0,21363.0,0.40292635]
[1674011591703,0.444454,21366.0,21362.0,0.32165399]
[1674011591983,0.444454,21366.0,21363.0,0.00096535]
[1674011591984,0.789713,21365.0,21363.0,0.00096535]
[1674011592238,0.768059,21365.0,21364.0,0.006]
[1674011592522,1.566268,21365.0,21364.0,0.006]
[1674011592784,0.44602652,21364.0,21362.0,0.32165399]
[1674011593045,0.590099,21363.0,21362.0,0.32165399]
[1674011593309,0.920253,21363.0,21362.0,0.32165399]
[1674011593870,1.370253,21363.0,21362.0,0.32165399]
[1674011594940,1.005253,21363.0,21362.0,0.32265399]
[1674011595512,0.883253,21363.0,21362.0,0.32265399]
[1674011595781,0.883253,21363.0,21362.0,0.72558034]
[1674011595782,0.406654,21363.0,21362.0,0.72558034]
[1674011596033,0.406654,21363.0,21362.0,0.72458034]
[1674011596034,0.321654,21363.0,21362.0,0.72458034]
[1674011596778,0.91412052,21364.0,21362.0,0.72458034]
[1674011596781,0.91412052,21364.0,21362.0,0.72558034]
[1674011596782,0.085,21363.0,21362.0,0.72558034]
[1674011597311,0.5103,21367.0,21362.0,0.72458034]
[1674011597566,0.5103,21367.0,21363.0,0.67073385]
[1674011597567,0.321654,21366.0,21363.0,0.67073385]
[1674011597871,1.28425799,21368.0,21365.0,0.40292635]
[1674011598109,0.44453011,21366.0,21365.0,0.40292635]
[1674011598364,0.76618411,21366.0,21365.0,0.40292635]
[1674011599455,0.76618411,21366.0,21363.0,0.00099865]
[1674011599719,1.089709,21365.0,21363.0,0.00099865]
[1674011599985,0.321654,21364.0,21362.0,0.32665399]
[1674011600256,0.468055,21365.0,21362.0,0.32165399]
[1674011600257,0.321654,21363.0,21362.0,0.32165399]
[1674011602081,0.789753,21363.0,21362.0,0.32165399]
[1674011602340,1.01119055,21363.0,21362.0,0.32165399]
[1674011602607,0.852753,21363.0,21362.0,0.32265399]
[1674011603237,1.106453,21363.0,21362.0,0.32265399]
[1674011603495,1.343453,21363.0,21362.0,0.32165399]
[1674011603754,1.043453,21363.0,21362.0,0.32165399]
[1674011604014,1.578453,21363.0,21362.0,0.32265399]
[1674011604271,1.128453,21363.0,21362.0,0.32265399]
[1674011604818,0.883253,21363.0,21362.0,0.32265399]
[1674011605317,1.183253,21363.0,21362.0,0.32265399]
[1674011606033,1.351352,21363.0,21362.0,0.32265399]
[1674011606298,1.651352,21363.0,21362.0,0.32265399]
[1674011607343,1.566352,21363.0,21362.0,0.32165399]
[1674011607608,0.321654,21363.0,21362.0,0.72458034]
[1674011607865,1.4246605,21364.0,21362.0,0.72458034]
[1674011608133,0.091,21363.0,21362.0,0.72458034]
[1674011608412,0.412654,21363.0,21362.0,0.72458034]
[1674011608666,1.348852,21363.0,21362.0,0.72458034]
[1674011608941,1.257852,21363.0,21362.0,0.72458034]
[1674011609206,1.347852,21363.0,21362.0,0.72458034]
[1674011609467,1.257852,21363.0,21362.0,0.72458034]
[1674011609768,1.347852,21363.0,21362.0,0.72458034]
[1674011610032,1.257852,21363.0,21362.0,0.72458034]
[1674011610294,1.566352,21363.0,21362.0,0.32165399]
[1674011610552,1.89279375,21363.0,21362.0,0.32165399]
[1674011610821,1.80279375,21363.0,21362.0,0.32165399]
[1674011611146,1.89279375,21363.0,21362.0,0.32165399]
[1674011611702,2.03749375,21363.0,21362.0,0.32165399]
[1674011611969,2.46766907,21363.0,21362.0,0.32165399]
[1674011612241,2.23122732,21363.0,21362.0,0.32165399]
[1674011613033,2.70842901,21363.0,21362.0,0.32165399]
[1674011613295,2.61842901,21363.0,21362.0,0.32165399]
[1674011613546,2.71042901,21363.0,21362.0,0.32165399]
[1674011614318,2.71042901,21363.0,21362.0,0.32155386]
[1674011614848,2.61842901,21363.0,21362.0,0.32155386]
[1674011615664,3.00004308,21363.0,21362.0,0.32155386]
[1674011615921,3.09204308,21363.0,21362.0,0.32155386]
[1674011616410,3.04894995,21363.0,21362.0,0.32155386]
[1674011616417,3.14094995,21363.0,21362.0,0.32155386]
[1674011616672,3.14094995,21363.0,21360.0,1.6232065]
[1674011616673,3.16050166,21363.0,21360.0,1.6232065]
[1674011616930,0.37882,21361.0,21360.0,1.6232065]
[1674011617193,0.850474,21361.0,21360.0,1.62223439]
[1674011617562,3.031542,21361.0,21360.0,1.62223439]
[1674011618339,3.123542,21361.0,21360.0,1.62223439]
[1674011619423,4.09025056,21361.0,21360.0,1.62223439]
[1674011619679,4.65635273,21361.0,21360.0,1.62223439]
[1674011619939,4.8236805,21361.0,21360.0,1.62223439]
[1674011620196,4.93496881,21361.0,21360.0,1.62223439]
[1674011620715,4.71187324,21361.0,21360.0,1.62223439]
[1674011620975,2.85924304,21361.0,21360.0,1.62223439]
[1674011621228,4.61987324,21361.0,21360.0,1.62223439]
[1674011621568,4.82378435,21361.0,21360.0,1.62223439]
[1674011621762,4.34968218,21361.0,21360.0,1.62223439]
[1674011622033,4.18235441,21361.0,21360.0,1.62223439]
[1674011623098,4.09035441,21361.0,21360.0,1.62223439]
[1674011623351,4.18235441,21361.0,21360.0,1.62223439]
[1674011624100,4.0704433,21361.0,21360.0,1.62223439]
[1674011624363,3.8284433,21361.0,21360.0,1.62223439]
[1674011624621,3.9204433,21361.0,21360.0,1.62223439]
[1674011624876,4.03235441,21361.0,21360.0,1.62223439]
[1674011625659,4.19968218,21361.0,21360.0,1.62223439]
[1674011625937,4.08777107,21361.0,21360.0,1.62223439]
[1674011626211,4.89742346,21361.0,21360.0,1.62223439]
[1674011626944,4.89742346,21361.0,21360.0,1.26716639]
[1674011626979,4.67425214,21361.0,21360.0,0.82733139]
[1674011627245,0.35676895,21360.0,21356.0,0.00096214]
[1674011627502,0.23414,21357.0,21356.0,0.00096214]
[1674011627759,2.728714,21357.0,21356.0,0.00096214]
[1674011628017,2.737214,21357.0,21356.0,0.00096214]
[1674011628279,2.737214,21357.0,21355.0,0.40292635]
[1674011628544,0.630154,21356.0,21355.0,0.40292635]
[1674011628808,1.566658,21356.0,21355.0,0.40292635]
[1674011629398,1.566658,21356.0,21355.0,0.5936523]
[1674011629590,1.266658,21356.0,21355.0,0.40292635]
[1674011629850,1.357658,21356.0,21355.0,0.40292635]
[1674011630913,2.24912622,21356.0,21355.0,0.40292635]
[1674011631705,1.71910651,21356.0,21355.0,0.40292635]
[1674011632246,2.01910651,21356.0,21355.0,0.40292635]
[1674011632766,2.25324651,21356.0,21355.0,0.40292635]
[1674011633040,1.96032403,21356.0,21355.0,0.40292635]
[1674011634634,1.42618403,21356.0,21355.0,0.40292635]
[1674011634850,1.72618403,21356.0,21355.0,0.40292635]
[1674011635109,1.42618403,21356.0,21355.0,0.40292635]
[1674011636166,1.72618403,21356.0,21355.0,0.40292635]
[1674011639798,1.42618403,21356.0,21355.0,0.40292635]
[1674011640056,1.39745251,21356.0,21355.0,0.40292635]
[1674011640324,1.71047451,21356.0,21355.0,0.40292635]
[1674011640590,1.349026,21356.0,21355.0,0.40292635]
[1674011640855,1.027504,21356.0,21355.0,0.40292635]
[1674011641121,1.349026,21356.0,21355.0,0.40292635]
[1674011642182,2.1005872,21356.0,21355.0,0.40292635]
[1674011642705,2.36865396,21356.0,21355.0,0.40292635]
[1674011643228,2.61128396,21356.0,21355.0,0.40292635]
[1674011643515,2.72313435,21356.0,21355.0,0.40292635]
[1674011643770,2.89096518,21356.0,21355.0,0.40292635]
[1674011644030,2.77911479,21356.0,21355.0,0.40292635]
[1674011644552,2.89111815,21356.0,21355.0,0.40292635]
[1674011644803,3.00290916,21356.0,21355.0,0.40292635]
[1674011645110,2.83507833,21356.0,21355.0,0.40292635]
[1674011645599,3.14779801,21356.0,21355.0,0.40292635]
[1674011645853,3.14779826,21356.0,21355.0,0.40292635]
[1674011646411,3.62500003,21356.0,21355.0,0.40292635]
[1674011646651,3.35693327,21356.0,21355.0,0.40292635]
[1674011646907,2.62324692,21356.0,21355.0,0.40292635]
[1674011647433,2.45522691,21356.0,21355.0,0.40292635]
[1674011647733,2.22109691,21356.0,21355.0,0.40292635]
[1674011647972,1.91259691,21356.0,21355.0,0.40292635]
[1674011648242,1.8005872,21356.0,21355.0,0.40292635]
[1674011648496,1.4790652,21356.0,21355.0,0.40292635]
[1674011648756,1.8005872,21356.0,21355.0,0.40292635]
[1674011649057,2.26465602,21356.0,21355.0,0.40292635]
[1674011649262,2.27315602,21356.0,21355.0,0.40292635]
[1674011649527,2.44117603,21356.0,21355.0,0.40292635]
[1674011649807,2.74117603,21356.0,21355.0,0.40292635]
[1674011650068,2.57315602,21356.0,21355.0,0.40292635]
[1674011650900,3.33016238,21356.0,21355.0,0.40292635]
[1674011651168,3.28025272,21356.0,21354.0,0.10789938]
[1674011651430,2.07645803,21355.0,21354.0,0.10789938]
[1674011651700,2.78267122,21355.0,21354.0,0.10789938]
[1674011651950,2.5022511,21355.0,21354.0,0.10789938]
[1674011652490,2.67047095,21355.0,21354.0,0.10789938]
[1674011653197,2.73047095,21355.0,21354.0,0.10789938]
[1674011653454,2.73051014,21355.0,21354.0,0.10789938]
[1674011653721,1.90699577,21355.0,21354.0,0.10789938]
[1674011653980,1.79482904,21355.0,21354.0,0.10789938]
[1674011654789,2.01912845,21355.0,21354.0,0.10789938]
[1674011655058,2.13128953,21355.0,21354.0,0.10789938]
[1674011655313,2.60849122,21355.0,21354.0,0.10789938]
[1674011655620,3.08259339,21355.0,21354.0,0.10789938]
[1674011655882,2.60849122,21355.0,21354.0,0.10789938]
[1674011656140,2.50689181,21355.0,21354.0,0.10789938]
[1674011656926,2.73129556,21355.0,21354.0,0.10789938]
[1674011657183,2.50689181,21355.0,21354.0,0.10789938]
[1674011657449,2.73129898,21355.0,21354.0,0.10789938]
[1674011657699,2.95737423,21355.0,21354.0,0.10789938]
[1674011657971,3.18177425,21355.0,21354.0,0.10789938]
[1674011658313,3.17261712,21355.0,21354.0,0.10789938]
[1674011658568,3.29481712,21355.0,21354.0,0.10789938]
[1674011659105,3.29481712,21355.0,21352.0,0.00099574]
[1674011659106,3.92207353,21355.0,21352.0,0.00099574]
[1674011659386,1.57085169,21353.0,21350.0,0.09077167]
[1674011659651,0.28033539,21351.0,21350.0,0.09077167]
[1674011659909,2.69837758,21351.0,21350.0,0.09077167]
[1674011660159,2.75390663,21351.0,21350.0,0.09077167]
[1674011660427,2.91469515,21351.0,21346.0,0.00378736]
[1674011660701,0.28034892,21349.0,21348.0,0.09077167]
[1674011660949,3.88673271,21349.0,21348.0,0.09077167]
[1674011661200,4.40786393,21349.0,21348.0,0.09077167]
[1674011661486,4.67819296,21349.0,21348.0,0.07012167]
[1674011661749,9.45670654,21349.0,21348.0,0.07012167]
[1674011662301,8.90602357,21349.0,21348.0,0.07012167]
[1674011662560,8.36488527,21349.0,21348.0,0.07012167]
[1674011662824,8.47711045,21349.0,21348.0,0.07012167]
[1674011663079,8.58921091,21349.0,21348.0,0.07012167]
[1674011663583,8.25273542,21349.0,21348.0,0.07012167]
[1674011663846,7.86202453,21349.0,21348.0,0.07012167]
[1674011664091,7.86202453,21349.0,21346.0,0.00378736]
[1674011664092,0.1229,21348.0,21346.0,0.00378736]
[1674011664346,2.33527069,21347.0,21346.0,0.00378736]
[1674011664598,2.38229974,21347.0,21346.0,0.00378736]
[1674011664873,3.15640191,21347.0,21346.0,0.00378736]
[1674011665163,3.26840361,21347.0,21346.0,0.00378736]
[1674011665423,3.15640191,21347.0,21346.0,0.00378736]
[1674011665680,3.10937286,21347.0,21346.0,0.00378736]
[1674011665971,2.250069,21347.0,21346.0,0.00378736]
[1674011666255,1.827369,21347.0,21346.0,0.00378736]
[1674011667524,2.127369,21347.0,21346.0,0.00378736]
[1674011668334,2.539584,21347.0,21346.0,0.00378736]
[1674011670111,2.661584,21347.0,21346.0,0.00378736]
[1674011670345,3.06890439,21347.0,21346.0,0.00378736]
[1674011671610,2.661584,21347.0,21346.0,0.00378736]
[1674011671873,2.361584,21347.0,21346.0,0.00378736]
[1674011672129,2.239584,21347.0,21346.0,0.00378736]
[1674011673078,2.539584,21347.0,21346.0,0.00378736]
[1674011674598,2.239584,21347.0,21346.0,0.00378736]
[1674011674854,2.65758401,21347.0,21346.0,0.00378736]
[1674011675354,1.77692001,21347.0,21346.0,0.00378736]
[1674011675605,1.45539801,21347.0,21346.0,0.00378736]
[1674011675855,0.97844901,21347.0,21346.0,0.00378736]
[1674011676638,0.51000001,21347.0,21346.0,0.00378736]
[1674011676887,0.41800001,21347.0,21346.0,0.07390903]
[1674011677393,0.41800001,21347.0,21346.0,0.59428829]
[1674011677655,0.42700001,21347.0,21346.0,0.92381029]
[1674011677910,0.42700001,21347.0,21346.0,1.51438129]
[1674011678175,0.42700001,21347.0,21346.0,2.46450889]
[1674011678439,1e-08,21347.0,21346.0,2.46450889]
[1674011678731,1e-08,21347.0,21346.0,2.46641729]
[1674011678972,1e-08,21347.0,21346.0,2.46654531]
[1674011679779,1e-08,21347.0,21346.0,2.814262]
[1674011680034,1e-08,21347.0,21346.0,2.62353605]
[1674011681081,2.6347,21354.0,21346.0,2.91553605]
[1674011681411,0.63505285,21356.0,21353.0,0.1229]
[1674011681635,0.48505285,21356.0,21354.0,0.51211595]
[1674011681877,0.42683061,21355.0,21353.0,0.19302167]
[1674011682140,0.48505285,21356.0,21353.0,0.26084762]
[1674011682398,0.1193,21354.0,21353.0,0.07012167]
[1674011682918,0.1193,21354.0,21352.0,0.58749722]
[1674011683176,0.1193,21354.0,21353.0,0.11212167]
[1674011683685,0.1193,21354.0,21353.0,0.20512167]
[1674011685557,0.1193,21354.0,21353.0,0.32802167]
[1674011686809,0.1193,21354.0,21353.0,1.11786167]
[1674011688106,0.1193,21354.0,21353.0,1.58617967]
[1674011688877,0.1193,21354.0,21353.0,2.22012181]
[1674011689187,0.1193,21354.0,21353.0,1.93512181]
[1674011689411,0.1193,21354.0,21353.0,1.66607967]
[1674011689919,0.1193,21354.0,21353.0,1.54317967]
[1674011690173,0.1193,21354.0,21353.0,1.45117967]
[1674011690448,0.1193,21354.0,21353.0,1.54317967]
[1674011690727,0.1193,21354.0,21353.0,1.45117967]
[1674011690985,0.1193,21354.0,21353.0,1.07486167]
[1674011692113,0.1193,21354.0,21353.0,1.54317967]
[1674011692368,0.1193,21354.0,21353.0,2.57773129]
[1674011692623,0.1193,21354.0,21353.0,2.50760962]
[1674011692884,0.1193,21354.0,21353.0,2.06686637]
[1674011693170,0.1193,21354.0,21353.0,1.50654837]
[1674011693455,0.1193,21354.0,21353.0,1.59854837]
[1674011693725,0.1193,21354.0,21353.0,1.00783037]
[1674011693977,0.11761068,21354.0,21353.0,0.56340837]
[1674011695296,0.11761068,21354.0,21353.0,0.47140837]
[1674011695744,0.11861068,21354.0,21353.0,0.55540837]
[1674011695960,0.11761068,21354.0,21353.0,0.47140837]
[1674011696195,0.11861068,21354.0,21353.0,0.55640837]
[1674011696407,0.11861068,21354.0,21353.0,0.87793037]
[1674011696897,0.11861068,21354.0,21353.0,0.55640837]
[1674011697134,0.11861068,21354.0,21353.0,1.93746637]
[1674011697355,0.11861068,21354.0,21353.0,1.71661103]
[1674011698479,0.11861068,21354.0,21353.0,2.1908546]
[1674011699131,0.11861068,21354.0,21353.0,1.83951103]
[1674011700090,0.11861068,21354.0,21353.0,1.37119303]
[1674011700315,0.11861068,21354.0,21353.0,1.83951103]
[1674011702410,0.11861068,21354.0,21353.0,1.25974504]
[1674011702656,0.11861068,21354.0,21353.0,1.72806304]
[1674011702882,0.11861068,21354.0,21353.0,1.87806304]
[1674011703107,0.11861068,21354.0,21353.0,1.72806304]
[1674011703995,0.11861068,21354.0,21353.0,1.87806304]
[1674011704222,0.11861068,21354.0,21353.0,1.69763168]
[1674011704442,0.11861068,21354.0,21353.0,2.26905959]
[1674011704730,0.11861068,21354.0,21353.0,2.61711761]
[1674011705440,0.11861068,21354.0,21353.0,2.11905959]
[1674011705992,0.11861068,21354.0,21353.0,2.4669484]
[1674011706179,0.11861068,21354.0,21353.0,2.7669484]
[1674011706402,0.01679285,21356.0,21354.0,0.38722136]
[1674011706623,0.01679285,21356.0,21355.0,1.70129]
[1674011708275,0.39751175,21360.0,21355.0,1.89236286]
[1674011708495,0.39751175,21360.0,21356.0,0.19072595]
[1674011708755,0.39751175,21360.0,21358.0,0.07012167]
[1674011709433,0.40351175,21360.0,21358.0,0.07012167]
[1674011709662,0.32151,21359.0,21358.0,0.07012167]
[1674011709910,0.32151,21359.0,21358.0,0.07612167]
[1674011709911,0.789696,21359.0,21358.0,0.07612167]
[1674011710596,0.468186,21359.0,21358.0,0.07012167]
[1674011710817,0.789696,21359.0,21358.0,0.07012167]
[1674011711507,0.789696,21359.0,21358.0,0.11712167]
[1674011711728,0.789696,21359.0,21358.0,0.07012167]
[1674011712445,0.789696,21359.0,21358.0,0.11712167]
[1674011712667,1.257882,21359.0,21358.0,0.11712167]
[1674011712892,1.64968727,21359.0,21358.0,0.047]
[1674011713129,2.33378727,21359.0,21358.0,0.047]
[1674011713350,1.680782,21359.0,21358.0,0.047]
[1674011713574,1.380782,21359.0,21358.0,0.047]
[1674011715027,1.530782,21359.0,21358.0,0.047]
[1674011715245,1.680782,21359.0,21358.0,0.047]
[1674011715700,1.380782,21359.0,21358.0,0.047]
[1674011715923,1.680782,21359.0,21358.0,0.047]
[1674011716635,1.631982,21359.0,21358.0,0.047]
[1674011717495,1.7524837,21359.0,21358.0,0.047]
[1674011718614,1.640482,21359.0,21358.0,0.047]
[1674011719334,1.7524837,21359.0,21355.0,0.07012167]
[1674011719555,0.0746,21357.0,21355.0,0.07012167]
[1674011719785,0.32151,21356.0,21354.0,0.23722136]
[1674011720010,0.39611,21355.0,21354.0,0.23722136]
[1674011720324,1.332658,21355.0,21354.0,0.23722136]
[1674011720539,1.632658,21355.0,21354.0,0.23722136]
[1674011720991,1.632658,21355.0,21354.0,0.32322136]
[1674011721211,2.35686456,21355.0,21354.0,0.23722136]
[1674011721440,2.22107923,21355.0,21354.0,0.23722136]
[1674011722112,1.86847753,21355.0,21354.0,0.42794731]
[1674011722329,1.86847753,21355.0,21354.0,0.23722136]
[1674011722592,2.16847753,21355.0,21354.0,0.23722136]
[1674011722810,2.11784669,21355.0,21354.0,0.23722136]
[1674011723033,2.16947753,21355.0,21354.0,0.23722136]
[1674011724019,2.03447753,21355.0,21354.0,0.23722136]
[1674011724475,2.44948179,21355.0,21354.0,0.23722136]
[1674011724932,2.39359933,21355.0,21354.0,0.23722136]
[1674011725178,2.98950582,21355.0,21354.0,0.23722136]
[1674011725401,3.56998787,21355.0,21354.0,0.23722136]